Cogmind - Beta 13 @@@ ROGUE MODE // 2024.03.20 @ 00:36:59 Player: Desymo99 Result: Destroyed by G-47 Trooper with Particle Gun Performance ------------- Evolutions (2) 1000 Regions Visited (3) 600 Robots Destroyed (27) 135 Value Destroyed (857) 857 Prototype IDs (0) 0 Alien Tech Used (0) 0 Bonus (12) 12 TOTAL SCORE: 2604 Bonus ------- High Alert Combat Kills 12 Cogmind --------- Core Integrity 0/550 Matter 19/300 Energy 20/100 System Corruption 0% Temperature Cool (18) Movement Core (50) Location -8/Materials Parts ------- > --- POWER (1) -------- (None) > --- PROPULSION (4) --- (None) > --- UTILITY (2) ------ Advanced Targeting Computer > --- WEAPON (4) ------- (None) > --- INVENTORY (5) ---- (None) Peak State ------------ > --- POWER ------------ Improved Ion Engine > --- PROPULSION ------- Aluminum Leg Aluminum Leg Carbon-fiber Leg > --- UTILITY ---------- Heat Sink Improved Targeting Computer > --- WEAPON ----------- Mini Grenade Launcher Mini Grenade Launcher Mini Grenade Launcher Mini Grenade Launcher > --- INVENTORY -------- Ion Engine Sensor Array Shotgun [Rating: 18] Favorites ----------- Power Ion Engine Engine Ion Engine Propulsion Aluminum Leg Leg Aluminum Leg Wheel Compact Wheel Hover Unit Hover Unit Utility Structural Scanner Device Structural Scanner Storage Small Storage Unit Processor Improved Targeting Computer Weapon Mini Grenade Launcher Energy Gun EM Pulse Gun Energy Cannon Light EM Pulse Cannon Ballistic Gun Shotgun Launcher Mini Grenade Launcher Build | -11 -10 -9 -8 ------- Run | Yrd Mat Mat Mat Slots Evolved 4 | . . 2 2 Power . | . . . . Propulsion 2 | . . . 2 Utility . | . . . . Weapon 2 | . . 2 . Parts Attached 38 | 5 13 14 6 Power 4 | 1 . 2 1 Engine 4 | 1 . 2 1 Core . | . . . . Reactor . | . . . . Propulsion 15 | 2 8 4 1 Treads . | . . . . Leg 5 | . 2 2 1 Wheel 2 | 2 . . . Hover 8 | . 6 2 . Flight . | . . . . Utility 9 | 1 3 2 3 Device 5 | . 3 1 1 Storage 1 | 1 . . . Processor 3 | . . 1 2 Hackware . | . . . . Protection . | . . . . Artifact . | . . . . Weapon 10 | 1 2 6 1 Energy Gun 2 | 1 1 . . Energy Cannon 1 | . . 1 . Ballistic Gun 2 | . . 1 1 Ballistic Cannon . | . . . . Launcher 5 | . 1 4 . Special Weapon . | . . . . Impact Weapon . | . . . . Slashing Weapon . | . . . . Piercing Weapon . | . . . . Special Melee Weapon . | . . . . Unidentified Prototypes . | . . . . Parts Lost 25 | . 7 7 11 Power 3 | . 1 . 2 Propulsion 10 | . 3 4 3 Utility 5 | . 1 2 2 Weapon 7 | . 2 1 4 Highest Loss Streak 10 | . 4 7 10 To Critical Strikes . | . . . . Average Slot Usage (%) 63 | . 65 51 74 Engine 7 | . 9 5 5 Leg 12 | . 5 14 20 Hover 6 | . 14 1 . Device 14 | . 20 13 8 Processor 3 | . . 3 8 Energy Gun 3 | . 7 . . Ballistic Gun 1 | . . 4 . Launcher 12 | . 3 8 32 Naked Turns 4 | . . . 4 Heaviest Build 14 | 12 13 14 12 Greatest Support 35 | 32 32 20 35 Greatest Overweight (x) 4 | . 4 2 2 Average Overweight (x) . | . . . . Largest Inventory Capacity 8 | 8 8 5 5 Average Capacity 5 | 6 5 5 5 Most Carried 5 | . 5 5 4 Average Carried 3 | . 4 2 3 Final Capacity 8 | 8 5 5 5 Final Carried 5 | . 5 4 . Class Distribution -------------------- 64% | Mutant 21% | Scavenger-Bomber 7% | Scavenger-Mutant 6% | Scavenger-Gunner Dominant Class ---------------- Mutant | -10/Materials Mutant | -9/Materials Scavenger-Bomber | -8/Materials Resources | -11 -10 -9 -8 ----------- Run | Yrd Mat Mat Mat Matter Collected 626 | 240 226 112 48 Remotely . | . . . . Salvage Created 881 | . 406 211 264 Parts 47 | . 16 14 17 Haulers Intercepted . | . . . . Recyclers Shooed . | . . . . Parts Field Recycled . | . . . . Retrieved Matter . | . . . . Parts Self-Destructed . | . . . . Prevented . | . . . . Kills | -11 -10 -9 -8 ------- Run | Yrd Mat Mat Mat Combat Hostiles Destroyed 20 | . 9 5 6 Guns 8 | . 4 4 . AOE 12 | . 5 1 6 Classes Destroyed 7 | . 4 1 2 Builder 2 | . 1 . 1 Recycler 3 | . 1 . 2 Watcher 2 | . 1 1 . Swarmer 3 | . . . 3 Grunt 13 | . 9 3 1 Sentry 3 | . . 2 1 Hunter 1 | . . . 1 Best Kill Streak 4 | . 4 4 4 Combat Bots Only 4 | . 2 4 3 Max Kills in Single Turn 2 | . 1 1 2 Gunslinging . | . . . . Exploded 2 | . 1 1 2 Melee . | . . . . Uniques/NPCs Destroyed . | . . . . Combat | -11 -10 -9 -8 -------- Run | Yrd Mat Mat Mat Hostile Shots Fired 190 | . 57 62 71 Missed 70 | . 22 22 26 Damage Taken 2170 | . 479 637 1054 Core 955 | . 134 265 556 Absorbed by Shields . | . . . . Core Remaining (%) 59 | 100 46 33 . Volleys Fired 57 | . 36 13 8 Largest 4 | . 1 4 4 Hottest 120 | . 40 120 120 Shots Fired 77 | . 36 16 25 Gun 33 | . 22 10 1 Cannon 2 | . . 2 . Launcher 42 | . 14 4 24 Special . | . . . . Kinetic 11 | . . 10 1 Thermal . | . . . . Explosive 42 | . 14 4 24 Electromagnetic 24 | . 22 2 . Robot Hit Streak 26 | . 4 21 26 Robot Miss Streak 3 | . 3 2 2 Penetration Max . | . . . . Secondary Targets . | . . . . Shots Hit Robots 34 | . 15 11 8 Core Hits 60 | . 32 13 15 Critical Kills . | . . . . Critical Parts Destroyed . | . . . . Critical Strikes . | . . . . Melee Attacks . | . . . . Impact . | . . . . Slashing . | . . . . Piercing . | . . . . Sneak Attacks . | . . . . Combat Hostiles . | . . . . Follow-up Attacks . | . . . . Damage Inflicted 2071 | . 927 384 760 Guns 416 | . 195 200 21 Cannons . | . . . . Explosions 1572 | . 724 109 739 Melee . | . . . . Ramming 83 | . 8 75 . Kinetic 221 | . . 200 21 Thermal . | . . . . Explosive 1572 | . 724 109 739 Electromagnetic 195 | . 195 . . Impact . | . . . . Slashing . | . . . . Piercing . | . . . . Highest Corruption 1 | . . 1 . Average Corruption 1 | . . 1 . Corruption Purged . | . . . . Corruption Blocked . | . . . . Effects 3 | . . 3 . Matter Fused 2 | . . 2 . Energy Discharges 1 | . . 1 . Overload Shots . | . . . . Overflow Damage 17 | . 7 3 7 Projectiles . | . . . . Explosions 14 | . 7 . 7 Melee 3 | . . 3 . Knockbacks 1 | . . 1 . Impact 1 | . . 1 . Kinetic . | . . . . Secondary . | . . . . Self-Inflicted Damage 201 | . 45 61 95 Shots 7 | . 3 1 3 Rammed 17 | . 1 16 . Targets Rammed 34 | . 4 30 . Kicked 17 | . 3 14 . Crushed . | . . . . Highest Temperature 120 | . 120 24 24 Average Temperature 37 | . 47 13 11 Received Heat Transfer 654 | . 237 219 198 Siege Activations . | . . . . Robots Corrupted . | . . . . Combat Hostiles . | . . . . Parts Fried . | . . . . Impact Corruptions 1 | . . 1 . Robots Melted . | . . . . Combat Hostiles . | . . . . Parts Melted . | . . . . Heat Transferred . | . . . . Parts Sabotaged . | . . . . Parts Stolen . | . . . . Parts Stripped . | . . . . Power Chain Reactions . | . . . . Alert | -11 -10 -9 -8 ------- Run | Yrd Mat Mat Mat Peak Influence 490 | . 298 183 490 Initial 76 | . . 51 76 Average 146 | . 105 92 313 Maximum Alert Level 2 | . 1 . 2 Low Security (%) 77 | 100 85 100 32 Level 1 11 | . 14 . 24 Level 2 10 | . . . 43 Level 3 . | . . . . Level 4 . | . . . . Level 5 . | . . . . High Security . | . . . . Max Security . | . . . . Squads Dispatched 7 | . 2 1 4 Investigation 2 | . 1 . 1 Extermination . | . . . . Reinforcement 5 | . 1 1 3 Assault . | . . . . Garrison . | . . . . Intercept . | . . . . Searches Triggered . | . . . . Construction Impeded . | . . . . Haulers Reinforced . | . . . . Active Scanning Responses . | . . . . Cargo Convoy Interrupts . | . . . . Stealth | -11 -10 -9 -8 --------- Run | Yrd Mat Mat Mat Distress Signals 2 | . 2 . . Communications Jammed . | . . . . Distress Signals . | . . . . Times Spotted 40 | . 15 8 17 Peak Tracking Total 9 | . 4 4 9 Tactical Retreats 2 | . . . 2 Traps | -11 -10 -9 -8 ------- Run | Yrd Mat Mat Mat Traps Triggered 1 | . . . 1 Indirectly . | . . . . Trap Hack Attempts . | . . . . Triggered . | . . . . Disarmed . | . . . . Reprogrammed . | . . . . Reused . | . . . . Traps Extracted . | . . . . Installed . | . . . . Triggered . | . . . . Machines | -11 -10 -9 -8 ---------- Run | Yrd Mat Mat Mat Machines Disabled 8 | . 2 1 5 Max in Single Turn 3 | . 1 1 3 Machines Repaired . | . . . . Machines Dismantled . | . . . . Machines Sabotaged . | . . . . Overloaded Fab Kills . | . . . . Hacking | -11 -10 -9 -8 --------- Run | Yrd Mat Mat Mat Machines Accessed 1 | . 1 . . Terminals 1 | . 1 . . Fabricators . | . . . . Repair Stations . | . . . . Recycling Units . | . . . . Scanalyzers . | . . . . Garrison Access . | . . . . Total Hacks 3 | . 3 . . Successful 2 | . 2 . . Failed 1 | . 1 . . Catastrophic 1 | . 1 . . Database Lockouts . | . . . . Manual 2 | . 2 . . Terminals 3 | . 3 . . Fabricators . | . . . . Repair Stations . | . . . . Recycling Units . | . . . . Scanalyzers . | . . . . Garrison Access . | . . . . Terminal Hacks 2 | . 2 . . Alert Level 1 | . 1 . . Zone Layout 1 | . 1 . . Fabricator Hacks . | . . . . Repair Station Hacks . | . . . . Recycling Unit Hacks . | . . . . Scanalyzer . | . . . . Garrison Access Hacks . | . . . . Unauthorized Hacks . | . . . . Terminals . | . . . . Fabricators . | . . . . Repair Stations . | . . . . Recycling Units . | . . . . Scanalyzers . | . . . . Garrison Access . | . . . . Data Cores Recovered . | . . . . Used . | . . . . Hacking Detections 1 | . 1 . . Full Trace Events 1 | . 1 . . Feedback Events . | . . . . Feedback Blocked . | . . . . Robot Schematics Acquired . | . . . . Robots Built . | . . . . Authchips . | . . . . Time . | . . . . Total Robot Build Rating . | . . . . Part Schematics Acquired . | . . . . Parts Built . | . . . . Authchips . | . . . . Time . | . . . . Total Part Build Rating . | . . . . Parts Repaired . | . . . . Time . | . . . . Parts Recycled . | . . . . Recycled Matter . | . . . . Retrieved Matter . | . . . . Retrieved Components . | . . . . Parts Scanalyzed . | . . . . Part Schematics Acquired . | . . . . Parts Damaged . | . . . . Bothacking | -11 -10 -9 -8 ------------ Run | Yrd Mat Mat Mat Used RIF Installer . | . . . . Robots Hacked . | . . . . Non-combat . | . . . . Combat . | . . . . Robot Hacks Applied . | . . . . Relay Couplers Released . | . . . . Fabnet Peak Effective % . | . . . . Robots Rewired . | . . . . Allies Hacked . | . . . . Hacks Repelled . | . . . . Allies | -11 -10 -9 -8 -------- Run | Yrd Mat Mat Mat Total Allies . | . . . . Largest Group . | . . . . Highest-Rated Group . | . . . . Highest-Rated Ally . | . . . . Total Orders . | . . . . Ally Attacks . | . . . . Total Damage . | . . . . Kills . | . . . . Allies Corrupted . | . . . . Allies Melted . | . . . . Intel | -11 -10 -9 -8 ------- Run | Yrd Mat Mat Mat Robot Analysis Total . | . . . . Derelict Logs Recovered . | . . . . Drone Launches . | . . . . Drone Recoveries . | . . . . Exploration | -11 -10 -9 -8 ------------- Run | Yrd Mat Mat Mat Turns Passed 1089 | 50 460 318 261 Spaces Moved 916 | 46 463 228 179 Core 100 | 6 24 60 10 Treads . | . . . . Legs 391 | . 79 143 169 Wheels 74 | 40 34 . . Hover 351 | . 326 25 . Flight . | . . . . Fastest Speed 50 | 50 56 50 50 Average Speed 89 | 93 74 97 116 Slowest Speed 250 | 100 250 150 150 Overloaded Moves . | . . . . Propulsion Burnouts . | . . . . Robots Hopped . | . . . . Cave-ins Triggered . | . . . . Exploration Rate (%) 29 | 4 78 19 18 Regions Visited 3 Branch Regions . Pre-discovered Areas . | . . . . Known Exits Taken . | . . . . Unknown Exits Taken 3 | 1 1 1 . Scrap Searched . | . . . . Spaces Dug 5 | . 5 . . Terrain Destroyed 215 | . 62 27 126 Melee . | . . . . Projectile . | . . . . AOE 215 | . 62 27 126 Terrain Rammed . | . . . . Walls Destroyed . | . . . . Machines Disabled . | . . . . Actions | -11 -10 -9 -8 --------- Run | Yrd Mat Mat Mat Total 1103 | 50 538 302 213 Wait 45 | . 17 10 18 Move 913 | 45 462 227 179 Hop . | . . . . Pick Up 5 | . 1 3 1 Fast Attach 26 | 5 8 12 1 Attach 6 | . 2 . 4 Detach 5 | . 4 . 1 Swap 6 | . 3 2 1 Drop 6 | . 1 5 . Fire 57 | . 36 13 8 Melee . | . . . . Ram 17 | . 1 16 . Kick 17 | . 3 14 . Crush . | . . . . Escape Stasis . | . . . . Rewire . | . . . . Trap . | . . . . Miscellaneous . | . . . . Route ------- -11/Scrapyard -10/Materials (discovered 3 exits: [*Mat x3]) -9/Materials -8/Materials History --------- Turn | Location | Event 4 | -11/Scrapyard | Discovered new exit (range 16) 51 | -11/Scrapyard | Entered Materials 138 | -10/Materials | Discovered new exit (range 16) 216 | -10/Materials | Discovered new exit (range 16) 301 | -10/Materials | Build established: Mutant 309 | -10/Materials | Discovered new exit (range 11) 409 | -10/Materials | Lost 4 parts (1p2n1w) 414 | -10/Materials | Core integrity fell below 50% 511 | -10/Materials | Entered another Materials area 511 | -9/Materials | Evolved 2 slots: Weapon x2 638 | -9/Materials | Core integrity fell below 50% 686 | -9/Materials | Lost 7 parts (4n2u1w) 825 | -9/Materials | Discovered new exit (range 3) 829 | -9/Materials | Entered another Materials area 829 | -8/Materials | Evolved 2 slots: Propulsion x2 1083 | -8/Materials | Core integrity fell below 50% 1088 | -8/Materials | Core integrity fell below 20% 1090 | -8/Materials | Destroyed by G-47 Trooper with Particle Gun Last Messages --------------- 01075_ Mni. Grenade Launcher destroyed. 01075_ Critical hit (Blast). 01075_ Knocked back. 01077_ Carbon-fiber Leg destroyed. 01077_ Mni. Grenade Launcher destroyed. 01077_ Knocked back. 01079_ Heat Sink destroyed. 01079_ Knocked back. 01085_ Sensor Array destroyed. 01086_ Knocked back. 01087_ Critical hit (Burn: +37). 01087_ K-01 Serf collects debris. 01088_ H-61 Shepherd calls for reinforcements. 01088_ ALERT: Hostile activity reported, dispatching reinforcements to area. 01088_ Shotgun blasted off. 01088_ Knocked back. 01088_ Ion Engine destroyed. 01088_ R-06 Scavenger collects Shotgun. 01089_ Acquired 13 matter. Map ----- +----------------------------------------------------+ | ?????????????????????????????????????????????? | | ?????????????????????????????????????????????? | | ?????????????????????????????????????????????? | | ?????????????????????????????????????????????? | | ?????????????????????????????????????????????? | | ?????????????????????????????????????????????? | | ?????????????????????????????????????????????? | | ?????????????????????????????????????????????? | | ?????????????????????????????????????????????? | | ?????????????????????????????????????????????? | | ????????????????????????? ???????????????????? | | ????????????????????????? ?????????????????? | | ????????????????????????? #???????????????? | | ????????????????????????? #???????????????? | | ???????????????????????? #???????????????? | | ???????????????????????? #???????????????? | | ??????????????#????????? #???????????????? | | ??????????????# "??????? #???????????????? | | ??????????????# ""?????? +???????????????? | | ??????????????? ""?????? #???????????????? | | ???????????????? ????? #???????????????? | | ????????????????? ??## ##??????????????? | | ???????#######???? ?# #??????????????? | | ???????# #######+## #??????????????? | | ???????# g #??????????????? | | ???????+ g g% @ H #??????????????? | | ???????# % gY % r #??????????????? | | ???????# Y ########;# g #??????????????? | | ???????### ############ ] #??????????????? | | ?????????# ## #??## ##??????????????? | | ????????## ##! """ #???? k #???????????????? | | ????????# # """ #???? #???????????????? | | ????????# T / """ #???? ??????????????? | | ????????# # #???? ?????????????? | | ????????## ## #???? ????????????? | | ?????????# #########???? #####???????????? | | ?????????# #???????????? ###???????????????? | | ?????????# #????????????? #?????????????????? | | ?????????# #????????????? #?????????????????? | | ?????????# #????????????? #?????????????????? | | ?????????# #????????????? ???????????????????? | | ?????????# #?????????????????????????????????? | | ?????????# #????????? ???????????????????????? | | ?????????# #??????"" ?? ??????????????????? | | ?????????# #???? ## %#?????????????????? | | ?????????# #????== * #?##??????????????? | | ?????????# #?????= ! ??????????????? | | ?????????# #?????? =??????????????? | | ??????#### ######## #?????????????? | | ??????# " #?????????????? | +----------------------------------------------------+ Best States ------------- Heat Dissipation 41 Energy Generation 12 Energy Capacity 265 Matter Stores 300 Matter Capacity 300 Sight Range 16 Robot Scan Range 14 Terrain Scan Range 14 Terrain Scan Density 10 Evasion (%) 55 Targeting Accuracy 8 Item Schematics ----------------- None Robot Schematics ------------------ None Fabricated ------------ Nothing Alien Tech Used ----------------- None Achievements -------------- None Challenges ------------ None Game ------ Seed DisruptionCarbideSpear Manual? 0 Play Time 00:18:13 Cumulative 14.2 hours Start 2024.03.20 @ 00:22:00 End 2024.03.20 @ 00:36:59 Sessions 1 Manual Loads 0 Difficulty Rogue Special Mode None Game No. 24 Rogue 24 Adventurer 0 Explorer 0 Win Type - Total 0 Types 0/0/0/0/0/0/0/0/0 Lore% 22 Gallery% 20 Achievement% 21 Wizard Run 0 Options --------- Layout 1 ASCII 0 Keyboard 1 Movement Numpad Keybinds 0 Fullscreen 1 Font 16/SmallcapsGlow Map View 55x38 Zoom Use 1% Tactical HUD 1 Map Filters NONE Filters NONE Steam 1 RUN: 8152e318-2006-4628-9d6b-92d396141f70